bitfinex/quotes_BTCUSD_20250908
["timestamp","ask_amount","ask_price","bid_price","bid_amount"]
[1757303008552,0.84038518,111390.0,111380.0,0.00141556]
[1757303008763,0.84038518,111390.0,111380.0,0.00041556]
[1757303009402,0.86578951,111390.0,111380.0,0.00041556]
[1757303010733,0.90557434,111390.0,111380.0,0.00041556]
[1757303012108,1.24557434,111390.0,111380.0,0.00041556]
[1757303012759,1.23659673,111390.0,111380.0,0.00041556]
[1757303016500,1.08427673,111390.0,111380.0,0.00041556]
[1757303016702,1.23659673,111390.0,111380.0,0.00041556]
[1757303017300,1.0570474,111390.0,111380.0,0.00041556]
[1757303019416,1.0570474,111390.0,111350.0,0.02155735]
[1757303019592,0.18812323,111360.0,111350.0,0.02169704]
[1757303019769,0.18812323,111360.0,111350.0,0.01270884]
[1757303019980,0.19012323,111360.0,111350.0,0.01471884]
[1757303020178,0.19012323,111360.0,111350.0,0.00573064]
[1757303020557,0.19012323,111360.0,111350.0,0.00530969]
[1757303020944,0.1989754,111360.0,111340.0,0.2243728]
[1757303021149,0.2291282,111360.0,111340.0,0.19291409]
[1757303021375,0.2291282,111360.0,111340.0,0.18392589]
[1757303021830,0.2291282,111360.0,111340.0,0.14347898]
[1757303022297,0.2291282,111360.0,111340.0,0.13449078]
[1757303022652,0.2291282,111360.0,111340.0,0.09404356]
[1757303023042,0.2291282,111360.0,111340.0,0.08821529]
[1757303023244,0.2291282,111360.0,111340.0,0.05675634]
[1757303023450,0.2291282,111360.0,111340.0,0.05001344]
[1757303023850,0.2291282,111360.0,111340.0,0.00956622]
[1757303024257,0.00166752,111350.0,111330.0,0.40944323]
[1757303024464,0.00166752,111350.0,111340.0,0.02921817]
[1757303024696,0.00280646,111350.0,111330.0,0.50144292]
[1757303024898,0.00598646,111350.0,111340.0,0.00206053]
[1757303025137,0.00280646,111350.0,111330.0,0.33336475]
[1757303025369,0.03295926,111350.0,111330.0,0.52148798]
[1757303025571,0.03295926,111350.0,111330.0,0.51249971]
[1757303026026,0.03295926,111350.0,111340.0,0.001]
[1757303026206,0.03295926,111350.0,111330.0,0.32637648]
[1757303026410,0.03295926,111350.0,111330.0,0.51449971]
[1757303026643,0.03295926,111350.0,111330.0,0.51649971]
[1757303026869,0.07342486,111350.0,111330.0,0.51249971]
[1757303027064,0.03295926,111350.0,111330.0,0.51249971]
[1757303027314,0.03295926,111350.0,111340.0,0.002]
[1757303027796,0.02977926,111350.0,111340.0,0.001]
[1757303028039,0.2009899,111370.0,111340.0,0.28103922]
[1757303028296,0.02697154,111350.0,111340.0,0.28103922]
[1757303028768,0.00318,111360.0,111340.0,0.28103922]
[1757303028981,0.02697154,111350.0,111340.0,0.09291599]
[1757303029204,0.02697154,111350.0,111340.0,0.09191599]
[1757303029682,0.00318,111360.0,111340.0,0.09191599]
[1757303029905,0.00318,111360.0,111340.0,0.09291599]
[1757303030096,0.00318,111350.0,111340.0,0.09291599]
[1757303030383,0.00318,111350.0,111340.0,0.09391599]
[1757303030624,0.00318,111350.0,111340.0,0.09291599]
[1757303030874,0.00318,111350.0,111340.0,0.09191599]
[1757303031079,0.00318,111350.0,111340.0,0.08292772]
[1757303032540,0.00598621,111360.0,111340.0,0.08292772]
[1757303032739,0.00318,111350.0,111340.0,0.08292772]
[1757303033279,0.00318,111350.0,111340.0,0.08392772]
[1757303033489,0.00318,111350.0,111340.0,0.08492772]
[1757303038225,0.00318,111350.0,111340.0,0.26455768]
[1757303038415,0.00318,111350.0,111340.0,0.25556948]
[1757303038835,0.00318,111350.0,111340.0,0.24658128]
[1757303039240,0.00318,111350.0,111340.0,0.23759308]
[1757303039932,0.00527,111350.0,111340.0,0.23759308]
[1757303040134,0.00527,111350.0,111340.0,0.38987308]
[1757303040344,0.37581352,111350.0,111340.0,0.002]
[1757303040548,0.37300706,111350.0,111340.0,0.002]
[1757303041214,0.18488383,111350.0,111340.0,0.18162996]
[1757303041446,0.18488383,111350.0,111340.0,0.002]
[1757303041651,0.18488383,111350.0,111340.0,0.001]
[1757303042644,0.18488383,111350.0,111330.0,0.38508765]
[1757303042877,0.18488383,111350.0,111330.0,0.47700364]
[1757303043319,0.17962996,111340.0,111330.0,0.63736368]
[1757303043541,0.18488383,111350.0,111330.0,0.47700977]
[1757303043542,0.18279383,111350.0,111330.0,0.47700977]
[1757303044181,0.17961383,111350.0,111330.0,0.47700977]
[1757303044645,0.17961383,111350.0,111330.0,8.37e-05]
[1757303044646,0.3758299,111340.0,111330.0,8.37e-05]
[1757303044860,0.37302319,111340.0,111330.0,0.1523637]
[1757303045279,0.18489996,111340.0,111330.0,0.1523637]
[1757303045987,0.18489996,111340.0,111330.0,0.33200979]
[1757303046195,0.17962996,111340.0,111330.0,0.33300979]
[1757303046412,0.3732525,111340.0,111330.0,0.33300979]
[1757303046630,0.3732525,111340.0,111330.0,0.33200979]
[1757303046831,0.18489996,111340.0,111330.0,0.33200979]
[1757303047709,0.18489996,111340.0,111330.0,0.33300979]
[1757303047910,0.18489996,111340.0,111330.0,0.33200979]
[1757303048125,0.3732525,111340.0,111330.0,0.33200979]
[1757303050020,0.18489996,111340.0,111330.0,0.33200979]
[1757303050246,0.3732525,111340.0,111330.0,0.33200979]
[1757303051035,0.3732525,111340.0,111330.0,0.1523637]
[1757303052310,0.56160504,111340.0,111330.0,0.1523637]
[1757303052850,0.3732525,111340.0,111330.0,0.1523637]
[1757303055596,0.3732525,111340.0,111330.0,8.37e-05]
[1757303055813,0.71388504,111340.0,111330.0,8.37e-05]
[1757303056238,0.74086345,111340.0,111330.0,8.37e-05]
[1757303057696,0.55251091,111340.0,111330.0,8.37e-05]
[1757303058652,0.40023091,111340.0,111330.0,8.37e-05]
[1757303058862,0.55251091,111340.0,111330.0,8.37e-05]
[1757303059441,0.21187837,111340.0,111330.0,8.37e-05]
[1757303059680,0.55251091,111340.0,111330.0,8.37e-05]
[1757303060858,1.02113198,111340.0,111330.0,8.37e-05]
[1757303061101,0.17967837,111310.0,111300.0,0.15228]
[1757303061350,0.17969451,111300.0,111290.0,4.2581597]
[1757303061583,0.18277451,111300.0,111290.0,4.50235569]
[1757303062708,0.18277451,111300.0,111290.0,4.00046596]
[1757303062709,0.56152959,111300.0,111290.0,4.00046596]
[1757303062916,0.37317705,111300.0,111290.0,4.00046596]
[1757303063126,0.52545705,111300.0,111290.0,4.00046596]
[1757303063334,0.37327962,111300.0,111290.0,4.00146596]
[1757303063579,0.37331962,111300.0,111290.0,4.00146596]
[1757303063791,0.40935216,111300.0,111290.0,4.00146596]
[1757303064004,0.5977047,111300.0,111290.0,4.00146596]
[1757303064220,0.7501447,111300.0,111290.0,4.00046596]
[1757303064433,0.5977047,111300.0,111290.0,4.00246596]
[1757303064646,0.7501847,111300.0,111290.0,4.00246596]
[1757303064924,0.7501847,111300.0,111290.0,4.00046596]
[1757303065589,0.7501847,111300.0,111290.0,4.00246596]
[1757303066038,1.03041323,111300.0,111290.0,4.00246596]
[1757303066280,1.08690392,111300.0,111290.0,4.00246596]
[1757303066510,1.03241323,111300.0,111290.0,4.00046596]
[1757303066733,1.03441323,111300.0,111290.0,3.99147627]
[1757303066965,1.02522541,111300.0,111290.0,3.98248658]
[1757303067200,1.02122541,111300.0,111290.0,3.98248658]
[1757303067466,1.36522541,111300.0,111290.0,3.46974036]
[1757303067699,2.13758846,111300.0,111290.0,3.08719085]
[1757303067914,2.15687343,111300.0,111290.0,2.99026096]
[1757303068140,2.15387343,111300.0,111290.0,2.86988736]
[1757303068368,2.15687343,111300.0,111290.0,2.62343326]
[1757303068594,2.12809077,111300.0,111290.0,2.61443766]
[1757303068850,2.12809077,111300.0,111290.0,2.58295305]
[1757303069086,1.55903315,111300.0,111290.0,2.57395745]
[1757303069307,1.71625174,111300.0,111290.0,2.57395745]
[1757303069530,1.71625174,111300.0,111290.0,2.53347724]
[1757303069757,1.71625174,111300.0,111290.0,2.52448164]
[1757303070047,1.72025174,111300.0,111290.0,2.52448164]
[1757303070269,1.72025174,111300.0,111290.0,2.48400143]
[1757303070481,1.71725174,111300.0,111290.0,2.48400143]
[1757303070693,1.71725174,111300.0,111290.0,2.47500583]
[1757303070921,4.15017982,111300.0,111290.0,1.83964509]
[1757303071142,4.15017982,111300.0,111290.0,1.77731593]
[1757303071382,4.14717982,111300.0,111290.0,1.42679146]
[1757303071598,4.156124,111300.0,111290.0,1.19719143]
[1757303071822,4.159124,111300.0,111290.0,1.10367268]
[1757303072262,4.159124,111300.0,111290.0,0.75281304]
[1757303072761,4.136648,111300.0,111290.0,0.74381744]
[1757303072981,3.97249782,111300.0,111290.0,0.27615625]
[1757303073407,3.97249782,111300.0,111290.0,0.26716065]
[1757303073862,3.97249782,111300.0,111290.0,0.25816505]
[1757303074126,4.06441381,111300.0,111290.0,1e-08]
[1757303074361,0.59064948,111290.0,111280.0,0.0004]
[1757303074574,1.27103309,111290.0,111280.0,0.00048375]
[1757303074791,1.27308309,111290.0,111280.0,0.00048375]
[1757303074979,1.29537885,111290.0,111280.0,0.00048375]
[1757303075187,1.2989788,111290.0,111280.0,0.00048375]
[1757303076576,1.4514588,111290.0,111280.0,0.00048375]
[1757303077042,1.4544588,111290.0,111280.0,0.00048375]
[1757303077224,1.4584588,111290.0,111280.0,0.00048375]
[1757303079415,3.43632679,111290.0,111280.0,0.00048375]
[1757303079627,3.43632679,111290.0,111270.0,0.0004]
[1757303079628,1.35984205,111280.0,111270.0,0.0004]
[1757303079843,3.37372104,111280.0,111270.0,0.0004]
[1757303080057,3.42405814,111280.0,111270.0,0.0004]
[1757303080269,3.42918814,111280.0,111270.0,0.0004]
[1757303080513,3.49585632,111280.0,111270.0,3.647e-05]
[1757303080933,1.08480058,111270.0,111260.0,0.0004]
[1757303081137,1.32919657,111270.0,111260.0,0.00052568]
[1757303081362,1.33432657,111270.0,111260.0,0.00052568]
[1757303081806,0.17975912,111260.0,111250.0,0.0104]
[1757303082020,1.02034668,111260.0,111250.0,0.01053986]
[1757303082207,1.02547668,111260.0,111250.0,0.01053986]
[1757303082841,1.04467729,111260.0,111250.0,0.01053986]
[1757303083656,1.01354334,111260.0,111250.0,0.01053986]
[1757303084312,0.51979144,111240.0,111230.0,0.01]
[1757303084515,1.32920505,111240.0,111230.0,0.01]
[1757303084660,1.33433505,111240.0,111230.0,0.01]
[1757303085062,1.35332785,111240.0,111230.0,0.01]
[1757303085266,1.35370957,111240.0,111230.0,0.01]
[1757303085693,1.39315584,111240.0,111230.0,0.01]
[1757303086260,1.0523633,111240.0,111230.0,0.01]
[1757303086476,1.01645076,111240.0,111230.0,0.01]
[1757303086728,0.86401076,111240.0,111230.0,0.01]
[1757303086968,0.52401076,111240.0,111230.0,0.01]
[1757303087153,0.8648033,111240.0,111230.0,0.01]
[1757303087496,0.67945076,111240.0,111230.0,0.01]
[1757303087703,0.8678033,111240.0,111230.0,0.01]
[1757303087928,0.49409822,111240.0,111230.0,0.01]
[1757303088139,0.49109822,111240.0,111230.0,0.01]
[1757303088349,0.48809822,111240.0,111230.0,0.01]
[1757303089107,0.49209822,111240.0,111230.0,0.01]
[1757303089733,0.31230678,111240.0,111230.0,0.01]
[1757303089892,0.29331398,111240.0,111230.0,0.01]
[1757303090096,0.47310542,111240.0,111230.0,0.01]
[1757303092934,0.04382799,111240.0,111230.0,0.37816014]
[1757303093142,0.19907723,111240.0,111230.0,0.37816014]
[1757303093351,0.19626799,111240.0,111230.0,0.37816014]
[1757303093573,0.04382799,111240.0,111230.0,0.37816014]
[1757303093807,0.04663723,111240.0,111230.0,0.37816014]
[1757303094260,0.04463723,111240.0,111230.0,0.37816014]
[1757303094491,0.00338172,111240.0,111230.0,0.56651268]
[1757303094702,0.00338172,111240.0,111230.0,0.74297268]
[1757303094905,0.00338172,111240.0,111230.0,0.76997107]
[1757303095120,0.00138172,111240.0,111230.0,0.76997107]
[1757303095348,0.00038172,111240.0,111230.0,0.76997107]
[1757303096224,0.00038172,111240.0,111230.0,0.77597107]
[1757303097085,0.00038172,111240.0,111230.0,0.77897107]
[1757303097274,0.00038172,111240.0,111230.0,0.62653107]
[1757303097479,0.00038172,111240.0,111230.0,0.43817853]
[1757303097693,0.00038172,111240.0,111230.0,0.59061853]
[1757303098300,0.00038172,111240.0,111230.0,0.40226599]
[1757303098502,0.00038172,111240.0,111230.0,0.43817853]
[1757303098681,0.00820096,111240.0,111230.0,0.019]
[1757303098865,0.00820096,111240.0,111230.0,0.20735254]
[1757303099069,0.00820096,111240.0,111230.0,0.17144]
[1757303099296,0.00613096,111240.0,111230.0,0.53960014]
[1757303099898,0.00319096,111240.0,111230.0,0.53960014]
[1757303100090,0.00613096,111240.0,111230.0,0.53060014]
[1757303100276,0.00319096,111240.0,111230.0,0.53160014]
[1757303100671,0.00319096,111240.0,111230.0,0.53360014]
[1757303100878,0.00319096,111240.0,111230.0,0.3452476]
[1757303101081,0.1859224,111240.0,111230.0,0.16344]
[1757303101435,0.18518316,111240.0,111230.0,0.011]
[1757303101647,0.18518316,111240.0,111230.0,0.16344]
[1757303101648,0.18618316,111240.0,111230.0,0.16344]
[1757303103739,0.46645169,111240.0,111230.0,0.011]
[1757303105208,0.27809915,111240.0,111230.0,0.011]
[1757303105412,0.46645169,111240.0,111230.0,0.011]
[1757303106496,0.68039659,111240.0,111230.0,0.011]
[1757303106698,0.72390423,111240.0,111230.0,0.011]
[1757303106908,1.16533163,111240.0,111230.0,0.011]
[1757303107813,1.16433163,111240.0,111230.0,0.01]
[1757303108025,1.16432713,111240.0,111230.0,0.01]
[1757303108325,0.97839424,111240.0,111230.0,0.01]
[1757303110157,0.78762205,111240.0,111230.0,0.01]
[1757303110567,0.95004684,111240.0,111230.0,0.01]
[1757303112243,1.13881903,111240.0,111230.0,0.01]
[1757303112458,0.95004684,111240.0,111230.0,0.01]
[1757303113017,1.13881903,111240.0,111230.0,0.01]
[1757303113427,0.95004684,111240.0,111230.0,0.01]
[1757303115817,1.13881903,111240.0,111230.0,0.01]
[1757303116255,1.11458559,111240.0,111230.0,0.01]
[1757303117303,0.73704121,111240.0,111230.0,0.01]
[1757303117513,0.9258134,111240.0,111230.0,0.01]
[1757303118347,1.06147746,111240.0,111230.0,0.01]
[1757303118537,1.07824877,111240.0,111230.0,0.01]
[1757303119314,1.06147746,111240.0,111230.0,0.01]
[1757303121669,1.34216564,111240.0,111230.0,0.01]
[1757303121896,1.25024965,111240.0,111230.0,0.01]
[1757303122129,0.17982377,111220.0,111210.0,0.0011]
[1757303122387,0.17982377,111220.0,111200.0,0.01]
[1757303122388,0.22983994,111210.0,111200.0,0.01]
[1757303122607,0.77350031,111210.0,111200.0,0.01046649]
[1757303122813,0.75344892,111210.0,111200.0,0.01046649]
[1757303122987,0.71711673,111210.0,111200.0,0.01046649]
[1757303123223,0.94548892,111210.0,111200.0,0.01046649]
[1757303124302,0.96627021,111210.0,111200.0,0.01046649]
[1757303124526,0.98855742,111210.0,111200.0,0.01046649]
[1757303124769,2.02733819,111210.0,111200.0,0.01046649]
[1757303125035,0.89741667,111190.0,111180.0,0.0104]
[1757303125295,0.95300047,111190.0,111180.0,0.0104]
[1757303125548,1.18736691,111190.0,111180.0,0.0104]
[1757303126021,1.18788691,111190.0,111180.0,0.0104]
[1757303126241,0.97984498,111190.0,111180.0,0.0104]
[1757303126467,1.09351165,111190.0,111180.0,0.0104]
[1757303126699,0.94055165,111190.0,111180.0,0.0104]
[1757303127317,1.09351165,111190.0,111180.0,0.0104]
[1757303127800,0.92261283,111190.0,111180.0,0.0104]
[1757303128039,0.77313397,111190.0,111180.0,0.0104]
[1757303128278,0.92361283,111190.0,111180.0,0.0104]
[1757303128499,1.07657283,111190.0,111180.0,0.0104]
[1757303128961,1.07357283,111190.0,111180.0,0.0104]
[1757303129402,1.12357283,111190.0,111180.0,0.0104]
[1757303129671,1.12657283,111190.0,111180.0,0.0104]
[1757303130298,1.12557283,111190.0,111180.0,0.0104]
[1757303130515,1.12515745,111190.0,111180.0,0.0104]
[1757303131163,1.12215745,111190.0,111180.0,0.0104]
[1757303131463,1.12415745,111190.0,111180.0,0.0104]
[1757303132013,1.12411745,111190.0,111180.0,0.0104]
[1757303132226,0.82171859,111190.0,111180.0,0.0104]
[1757303132450,0.82171859,111190.0,111180.0,0.01216]
[1757303132630,0.82171859,111190.0,111180.0,0.0104]
[1757303133262,0.81971859,111190.0,111180.0,0.0104]
[1757303133503,0.48213397,111190.0,111180.0,0.0104]
[1757303134337,0.48213397,111190.0,111180.0,0.01216]
[1757303134571,0.30226168,111190.0,111180.0,0.01216]
[1757303134800,0.29934168,111190.0,111180.0,0.01216]
[1757303135028,0.78477283,111190.0,111180.0,0.0104]
[1757303137252,0.89873786,111190.0,111180.0,0.0104]
[1757303137486,0.80402786,111190.0,111180.0,0.0104]
[1757303138149,0.501589,111190.0,111180.0,0.0104]
[1757303138366,0.78477283,111190.0,111180.0,0.0104]
[1757303138595,0.80402786,111190.0,111180.0,0.0104]
[1757303138810,0.84167826,111190.0,111180.0,0.0104]
[1757303139705,0.87281221,111190.0,111180.0,0.0104]
[1757303141085,0.92281221,111190.0,111180.0,0.0104]
[1757303141678,0.89167826,111190.0,111180.0,0.0104]
[1757303142494,0.5892394,111190.0,111180.0,0.0104]
[1757303142698,0.89167826,111190.0,111180.0,0.0104]
[1757303144426,0.9159117,111190.0,111180.0,0.0104]
[1757303145365,0.46031284,111190.0,111180.0,0.0104]
[1757303145662,0.89673667,111190.0,111180.0,0.0104]
[1757303145862,0.9159917,111190.0,111180.0,0.0104]
[1757303146672,0.7627517,111190.0,111180.0,0.0104]
[1757303146864,0.9159517,111190.0,111180.0,0.0104]
[1757303147481,0.7627517,111190.0,111180.0,0.0104]
[1757303147693,0.9159517,111190.0,111180.0,0.0104]
[1757303147915,0.7627517,111190.0,111180.0,0.0104]
[1757303148345,0.9159117,111190.0,111180.0,0.0104]
[1757303148552,0.9914445,111190.0,111180.0,0.0104]
[1757303148774,0.8382845,111190.0,111180.0,0.0104]
[1757303148999,0.7882845,111190.0,111180.0,0.0104]
[1757303149227,0.73151985,111190.0,111180.0,0.0104]
[1757303149442,0.76386725,111190.0,111180.0,0.0104]
[1757303150054,0.62110725,111190.0,111180.0,0.0104]
[1757303150266,0.77426725,111190.0,111180.0,0.0104]
[1757303150507,0.75003381,111190.0,111180.0,0.0104]
[1757303151371,0.79851491,111190.0,111180.0,0.0104]
[1757303151582,0.79847491,111190.0,111180.0,0.0104]
[1757303151791,0.79843491,111190.0,111180.0,0.0104]
[1757303152008,0.98742074,111190.0,111180.0,0.0104]
[1757303152498,0.64539491,111190.0,111180.0,0.0104]
[1757303152720,0.21561569,111190.0,111180.0,0.01216]
[1757303152936,0.53038648,111190.0,111180.0,0.01216]
[1757303153635,0.31405326,111190.0,111180.0,0.01216]
[1757303153859,0.06897727,111190.0,111180.0,0.38213429]
[1757303154092,0.05226569,111190.0,111180.0,0.38213429]
[1757303154317,0.05226569,111190.0,111180.0,0.19314846]
[1757303154525,0.05507619,111190.0,111180.0,0.19314846]
[1757303154991,0.05226569,111190.0,111180.0,0.19314846]
[1757303155174,0.05226569,111190.0,111180.0,0.21693846]
[1757303155650,0.05026569,111190.0,111180.0,0.21693846]
[1757303156321,0.05026569,111190.0,111180.0,0.51919593]
[1757303156525,0.05026569,111190.0,111180.0,0.52119593]
[1757303156734,0.05026569,111190.0,111180.0,0.51919593]
[1757303156956,0.05026569,111190.0,111180.0,0.52319593]
[1757303157175,0.05307619,111190.0,111180.0,0.02516]
[1757303157631,0.63214194,111190.0,111180.0,0.0234]
[1757303157834,0.62933144,111190.0,111180.0,0.0234]
[1757303158437,0.62933144,111190.0,111180.0,0.0194]
[1757303158872,0.32707397,111190.0,111180.0,0.02416]
[1757303159082,0.14218168,111190.0,111180.0,0.01516]
[1757303159291,0.14499218,111190.0,111180.0,0.01516]
[1757303159498,0.32486447,111190.0,111180.0,0.02216]
[1757303159708,0.32205397,111190.0,111180.0,0.01916]
[1757303159910,0.32305397,111190.0,111180.0,0.01216]
[1757303160165,0.32305397,111190.0,111180.0,0.01416]
[1757303160581,0.14318168,111190.0,111180.0,0.01416]
[1757303160794,0.14599218,111190.0,111180.0,0.01416]
[1757303161159,0.32791447,111190.0,111180.0,0.01416]
[1757303161369,0.32807397,111190.0,111180.0,0.01416]
[1757303161745,0.32807397,111190.0,111180.0,0.0124]
[1757303162039,0.32707397,111190.0,111180.0,0.01416]
[1757303163411,0.32707397,111190.0,111180.0,0.0124]
[1757303164268,0.62933144,111190.0,111180.0,0.0124]
[1757303165546,0.32707397,111190.0,111180.0,0.0124]
[1757303165760,0.32807397,111190.0,111180.0,0.0124]
[1757303165988,0.32807397,111190.0,111180.0,0.0104]
[1757303166423,0.32807397,111190.0,111180.0,0.0114]
[1757303168491,0.52485856,111190.0,111180.0,0.0114]
[1757303171794,0.52485856,111190.0,111180.0,0.01316]
[1757303172204,0.32807397,111190.0,111180.0,0.01316]
[1757303172423,0.32305397,111190.0,111180.0,0.01316]
[1757303172958,0.32205397,111190.0,111180.0,0.01316]
[1757303173160,0.14218168,111190.0,111180.0,0.01216]
[1757303173491,0.32486447,111190.0,111180.0,0.01216]
[1757303173698,0.14218168,111190.0,111180.0,0.01416]
[1757303173902,0.14499218,111190.0,111180.0,0.01416]
[1757303176552,0.33388649,111190.0,111180.0,0.01416]
[1757303176766,0.05,111190.0,111180.0,0.38404277]
[1757303176979,0.20284,111190.0,111180.0,0.38404277]
[1757303177426,0.05,111190.0,111180.0,0.38404277]
[1757303177564,0.05,111190.0,111180.0,0.40783277]
[1757303182693,0.05,111190.0,111180.0,0.56059277]
[1757303183590,0.05,111190.0,111180.0,0.37169846]
[1757303183801,0.05,111190.0,111180.0,0.56059277]
[1757303183982,0.05,111190.0,111180.0,0.40783277]
[1757303185873,0.05,111190.0,111180.0,0.21893846]
[1757303186081,0.05,111190.0,111180.0,0.37157846]
[1757303186942,0.05,111190.0,111180.0,0.56047277]
[1757303187478,0.05,111190.0,111180.0,0.37157846]
[1757303190777,0.05,111190.0,111180.0,0.56047277]
[1757303194830,0.05,111190.0,111180.0,0.37157846]
[1757303194975,0.05,111190.0,111180.0,0.56047277]
[1757303199898,0.05,111190.0,111180.0,0.37157846]
[1757303200119,0.05,111190.0,111180.0,0.03905]
[1757303200343,0.5766266,111190.0,111180.0,0.0124]
[1757303200560,0.66854259,111190.0,111180.0,0.0124]
[1757303202530,0.8574369,111190.0,111180.0,0.0124]
[1757303202740,0.66854259,111190.0,111180.0,0.0124]
[1757303204949,0.4836903,111190.0,111180.0,0.01416]
[1757303205168,0.4866603,111190.0,111180.0,0.01416]
[1757303205378,0.3308103,111190.0,111180.0,0.01416]
[1757303205589,0.4836503,111190.0,111180.0,0.01416]
[1757303206249,0.66352259,111190.0,111180.0,0.01416]
[1757303206448,0.66649259,111190.0,111180.0,0.01416]
[1757303206660,0.29475599,111190.0,111180.0,0.01416]
[1757303206864,0.66352259,111190.0,111180.0,0.01416]
[1757303207083,0.47960828,111190.0,111180.0,0.01416]
[1757303207300,0.66850259,111190.0,111180.0,0.01416]
[1757303209385,0.4886303,111190.0,111180.0,0.01416]
[1757303209608,0.66850259,111190.0,111180.0,0.01416]
[1757303210860,0.4886303,111190.0,111180.0,0.01416]
[1757303211293,0.29463599,111190.0,111180.0,0.01416]
[1757303211478,0.4835303,111190.0,111180.0,0.01416]
[1757303213319,0.29451599,111190.0,111180.0,0.01416]
[1757303213517,0.4834103,111190.0,111180.0,0.01416]
[1757303213838,0.48378449,111190.0,111180.0,0.01416]
[1757303217859,0.29489018,111190.0,111180.0,0.01416]
[1757303218065,0.48378449,111190.0,111180.0,0.01416]
[1757303219234,0.3039122,111190.0,111180.0,0.01416]
[1757303219675,0.34149431,111190.0,111180.0,0.19404813]
[1757303219971,0.1526,111190.0,111180.0,0.38404089]
[1757303220179,0.1526,111190.0,111180.0,0.19514658]
[1757303220400,0.34149431,111190.0,111180.0,0.19404658]
[1757303220619,0.34149431,111190.0,111180.0,0.19514658]
[1757303221037,0.34149431,111190.0,111180.0,0.19404658]
[1757303221283,0.1526,111190.0,111180.0,0.19404658]
[1757303221502,0.34149431,111190.0,111180.0,0.19404658]
[1757303221718,0.34149431,111190.0,111180.0,0.01416]
[1757303222133,0.5266666,111190.0,111180.0,0.0124]
[1757303223008,0.33777229,111190.0,111180.0,0.0124]
[1757303223222,0.5266666,111190.0,111180.0,0.0124]
[1757303225620,0.34149431,111190.0,111180.0,0.01416]
[1757303226853,0.1526,111190.0,111180.0,0.01416]
[1757303227068,0.34430481,111190.0,111180.0,0.01416]
[1757303227222,0.34149431,111190.0,111180.0,0.01416]
[1757303227669,0.5213666,111190.0,111180.0,0.01416]
[1757303228414,0.5245166,111190.0,111180.0,0.01416]
[1757303229617,0.5245166,111190.0,111180.0,0.01416]
[1757303230061,0.5266666,111190.0,111180.0,0.01416]
[1757303230470,0.52666815,111190.0,111180.0,0.01416]
[1757303231317,0.57666815,111190.0,111180.0,0.01416]
[1757303232122,0.39464586,111190.0,111180.0,0.01416]
[1757303232335,0.57451815,111190.0,111180.0,0.01416]
[1757303234349,0.57666815,111190.0,111180.0,0.01416]
[1757303234550,0.57666815,111190.0,111180.0,0.0124]
[1757303237276,0.38777229,111190.0,111180.0,0.0124]
[1757303237404,0.57666815,111190.0,111180.0,0.0124]
[1757303239231,0.62767445,111190.0,111180.0,0.0124]
[1757303239803,0.61543414,111190.0,111180.0,0.0124]
[1757303241231,0.61836414,111190.0,111180.0,0.0124]
[1757303242430,0.80726,111190.0,111180.0,0.0124]
[1757303242668,0.83839395,111190.0,111180.0,0.0124]
[1757303242881,0.88693365,111190.0,111180.0,0.0124]
[1757303243090,0.89933365,111190.0,111180.0,0.0124]
[1757303243502,0.89933365,111190.0,111180.0,0.0104]
[1757303243961,0.90033365,111190.0,111180.0,0.0104]
[1757303244369,0.89933365,111190.0,111180.0,0.0104]
[1757303244793,0.90133365,111190.0,111180.0,0.0104]
[1757303245263,0.90133365,111190.0,111180.0,0.0114]
[1757303245487,0.87214767,111190.0,111180.0,0.0104]
[1757303246648,0.84101372,111190.0,111180.0,0.0104]
[1757303246869,0.68841372,111190.0,111180.0,0.0104]
[1757303247083,0.84101372,111190.0,111180.0,0.0104]
[1757303247945,0.86195254,111190.0,111180.0,0.0104]
[1757303248165,0.89308649,111190.0,111180.0,0.0104]
[1757303248372,0.86195254,111190.0,111180.0,0.0104]
[1757303249035,1.02227247,111190.0,111180.0,0.0104]
[1757303249254,0.99113852,111190.0,111180.0,0.0104]
[1757303250403,1.02227247,111190.0,111180.0,0.0104]
[1757303250635,0.99113852,111190.0,111180.0,0.0104]
[1757303250856,0.578619,111180.0,111170.0,0.0004]
[1757303251067,0.73965499,111180.0,111170.0,0.00053969]
[1757303251281,0.78476005,111180.0,111170.0,0.00053969]
[1757303252554,0.78476005,111180.0,111170.0,0.00153969]
[1757303252769,0.93836005,111180.0,111170.0,0.00153969]
[1757303253414,0.93936005,111180.0,111170.0,0.00153969]
[1757303256989,0.93836005,111180.0,111170.0,0.00153969]
[1757303257437,0.94036005,111180.0,111170.0,0.00053969]
[1757303257933,0.93836005,111180.0,111170.0,0.00053969]
[1757303258138,0.95076005,111180.0,111170.0,0.00053969]
[1757303263329,0.97004028,111180.0,111170.0,0.00053969]
[1757303264586,0.97080028,111180.0,111170.0,0.00053969]
[1757303266097,0.94982146,111180.0,111170.0,0.00053969]
[1757303272264,0.96659751,111180.0,111170.0,0.00053969]
[1757303273902,0.98753633,111180.0,111170.0,0.00053969]
[1757303274982,1.01171235,111180.0,111170.0,0.00053969]
[1757303275198,1.20060821,111180.0,111170.0,0.00053969]
[1757303275374,1.23174216,111180.0,111170.0,0.00053969]
[1757303275804,1.0428463,111180.0,111170.0,0.00053969]
[1757303276172,1.23174216,111180.0,111170.0,0.00053969]
[1757303276860,1.0428463,111180.0,111170.0,0.00053969]
[1757303278709,1.23174216,111180.0,111170.0,0.00053969]
[1757303278929,1.0428463,111180.0,111170.0,0.00053969]
[1757303279084,1.1251937,111180.0,111170.0,0.00053969]
[1757303281140,1.0928463,111180.0,111170.0,0.00053969]
[1757303281583,1.1251937,111180.0,111170.0,0.00053969]
[1757303282739,1.09405975,111180.0,111170.0,0.00053969]
[1757303283846,0.93973975,111180.0,111170.0,0.00053969]
[1757303284077,1.09361975,111180.0,111170.0,0.00053969]
[1757303284298,1.06127235,111180.0,111170.0,0.00053969]
[1757303285668,1.0444963,111180.0,111170.0,0.00053969]
[1757303285889,1.06128365,111180.0,111170.0,0.00053969]
[1757303286361,0.90740365,111180.0,111170.0,0.00053969]
[1757303286555,1.06112365,111180.0,111170.0,0.00053969]
[1757303287210,1.01112365,111180.0,111170.0,0.00053969]
[1757303287478,1.06112365,111180.0,111170.0,0.00053969]
[1757303290572,1.25047347,111180.0,111170.0,0.00053969]
[1757303292529,1.20047347,111180.0,111170.0,0.00053969]
[1757303292777,1.25047347,111180.0,111170.0,0.00053969]
[1757303292987,1.25048408,111180.0,111170.0,0.00053969]
[1757303293198,1.20048408,111180.0,111170.0,0.00053969]
[1757303293411,1.25048408,111180.0,111170.0,0.00053969]